fUSD/lending_fUSD_20260108
["ID","MTS","AMOUNT","RATE_DAILY","PERIOD"]
[400983827,1767879042435,-1500.0,0.00016852,2]
[400983829,1767879042444,-500.0,0.00016852,2]
[400983831,1767879042453,-1500.0,0.00016852,2]
[400983833,1767879042463,-322.61070001,0.00016852,2]
[400983835,1767879042472,-500.0,0.00016852,2]
[400983837,1767879042481,-1500.0,0.00016852,2]
[400983839,1767879042490,-500.0,0.00016852,2]
[400983841,1767879042499,-500.0,0.00016852,2]
[400983843,1767879042508,-1500.0,0.00016852,2]
[400983845,1767879042517,-500.0,0.00016852,2]
[400983847,1767879042527,-500.0,0.00016852,2]
[400983849,1767879042536,-238.63712889,0.00016852,2]
[400983851,1767879042546,-500.0,0.00016852,2]
[400983853,1767879042555,-151.0,0.00016852,2]
[400983855,1767879042564,-500.0,0.00016852,2]
[400983857,1767879042574,-151.0,0.00016852,2]
[400983859,1767879042583,-500.0,0.00016852,2]
[400983861,1767879042593,-500.0,0.00016852,2]
[400983863,1767879042602,-500.0,0.00016852,2]
[400983865,1767879042611,-166.77833559,0.00016852,2]
[400983867,1767879042622,-500.0,0.00016852,2]
[400983869,1767879042631,-500.0,0.00016852,2]
[400983871,1767879042640,-500.0,0.00016852,2]
[400983873,1767879042650,-272.12855637,0.00016852,2]
[400983875,1767879042659,-500.0,0.00016852,2]
[400983877,1767879042668,-250.0,0.00016852,2]
[400983879,1767879042677,-250.0,0.00016852,2]
[400983881,1767879042686,-250.0,0.00016852,2]
[400983883,1767879042697,-151.0,0.00016852,2]
[400983885,1767879042706,-250.0,0.00016852,2]
[400983886,1767879042715,-2000.0,0.00016852,2]
[400983888,1767879042724,-2000.0,0.00016852,2]
[400983890,1767879042733,-2000.0,0.00016852,2]
[400983891,1767879042742,-2000.0,0.00016852,2]
[400983893,1767879042751,-152.0,0.0001688,4]
[400983895,1767879042761,-435.5798791,0.00016885,2]
[400983897,1767879042770,-357.2,0.00016891,2]
[400983898,1767879042779,-2500.0,0.00016954,2]
[400983900,1767879042788,-157.72323008,0.00016982,2]
[400983902,1767879042798,-250.0,0.00017,2]
[400983904,1767879042807,-4000.0,0.00017,2]
[400983906,1767879042816,-357.2,0.00017002,2]
[400983908,1767879042826,-661.47,0.00017041,2]
[400983909,1767879042835,-661.47,0.00017041,2]
[400983911,1767879042843,-661.47,0.00017041,2]
[400983913,1767879042852,-661.47,0.00017041,2]
[400983915,1767879042862,-6072.10307611,0.00017111,2]
[400983916,1767879042871,-1000.0,0.00017112,2]
[400983918,1767879042881,-357.2,0.00017113,2]
[400983920,1767879042890,-152.0,0.00017155,5]
[400983922,1767879042899,-342.55,0.00017178,2]
[400983924,1767879042908,-357.2,0.00017224,2]
[400983925,1767879042917,-1613.0,0.00017319,2]
[400983928,1767879042930,-357.2,0.00017335,2]
[400983929,1767879042940,-6453.0,0.00017389,2]
[400983931,1767879042949,-151.0,0.000174,2]
[400983933,1767879042958,-152.0,0.00017429,6]
[400983935,1767879042968,-357.2,0.00017445,2]
[400983937,1767879042977,-2000.0,0.000175,2]
[400983938,1767879042987,-3000.0,0.00017502,2]
[400983940,1767879042996,-357.2,0.00017556,2]
[400983942,1767879043005,-150.0,0.00017615,2]
[400983944,1767879043015,-150.0,0.00017615,2]
[400983946,1767879043025,-150.0,0.00017615,2]
[400983948,1767879043034,-500.0,0.00017615,2]
[400983950,1767879043044,-150.0,0.00017615,2]
[400983951,1767879043056,-164.77040348,0.00017615,2]
[400983953,1767879043065,-500.0,0.00017615,2]
[400983955,1767879043075,-500.0,0.00017615,2]
[400983957,1767879043085,-500.0,0.00017615,2]
[400983959,1767879043095,-150.0,0.00017615,2]
[400983960,1767879043104,-150.0,0.00017615,2]
[400983962,1767879043113,-150.0,0.00017615,2]
[400983964,1767879043123,-500.0,0.00017615,2]
[400983966,1767879043132,-150.0,0.00017615,2]
[400983968,1767879043142,-150.0,0.00017615,2]
[400983970,1767879043151,-500.0,0.00017615,2]
[400983972,1767879043161,-150.0,0.00017615,2]
[400983974,1767879043170,-357.2,0.00017667,2]
[400983976,1767879043180,-150.0,0.0001767,2]
[400983977,1767879043189,-150.0,0.0001767,2]
[400983979,1767879043199,-500.0,0.0001767,2]
[400983981,1767879043208,-500.0,0.0001767,2]
[400983983,1767879043217,-500.0,0.0001767,2]
[400983985,1767879043227,-500.0,0.0001767,2]
[400983987,1767879043237,-150.0,0.0001767,2]
[400983988,1767879043246,-150.0,0.0001767,2]
[400983990,1767879043256,-419.97512683,0.0001767,2]
[400983992,1767879043265,-500.0,0.0001767,2]
[400983994,1767879043275,-150.0,0.0001767,2]
[400983995,1767879043285,-942.56574764,0.000177,2]
[400983997,1767879043294,-152.0,0.00017704,7]
[400983999,1767879043303,-1000.0,0.00017709,2]
[400984001,1767879043313,-200.0,0.00017725,2]
[400984003,1767879043322,-221.38436778,0.00017725,2]
[400984005,1767879043332,-173.0,0.00017725,2]
[400984007,1767879043341,-182.10117033,0.00017725,2]
[400984009,1767879043350,-500.0,0.00017725,2]
[400984011,1767879043360,-500.0,0.00017725,2]
[400984013,1767879043369,-200.0,0.00017725,2]
[400984014,1767879043379,-200.0,0.00017725,2]
[400984016,1767879043390,-500.0,0.00017725,2]
[400984018,1767879043399,-200.0,0.00017725,2]
[400984020,1767879043408,-300.0,0.0001773,2]
[400984022,1767879043418,-196.6559446,0.00017732,2]
[400984024,1767879043428,-300.0,0.00017736,2]
[400984026,1767879043438,-300.0,0.00017739,2]
[400984028,1767879043447,-300.0,0.00017747,2]
[400984030,1767879043457,-300.0,0.00017751,2]
[400984031,1767879043468,-300.0,0.00017753,2]
[400984033,1767879043477,-300.0,0.00017757,2]
[400984035,1767879043487,-300.0,0.00017759,2]
[400984037,1767879043497,-300.0,0.00017765,2]
[400984039,1767879043507,-300.0,0.00017766,2]
[400984041,1767879043517,-357.2,0.00017778,2]
[400984043,1767879043527,-500.0,0.00017779,2]
[400984045,1767879043539,-500.0,0.00017779,2]
[400984047,1767879043549,-300.0,0.00017785,2]
[400984049,1767879043559,-300.0,0.00017806,2]
[400984051,1767879043569,-300.0,0.00017809,2]
[400984053,1767879043578,-300.0,0.00017811,2]
[400984055,1767879043588,-300.0,0.00017811,2]
[400984057,1767879043599,-300.0,0.00017812,2]
[400984059,1767879043609,-300.0,0.00017812,2]
[400984060,1767879043621,-1206.43464,0.0001782,2]
[400984062,1767879043631,-1206.43465,0.0001782,2]
[400984064,1767879043641,-300.0,0.00017824,2]
[400984066,1767879043651,-1206.43465,0.0001783,2]
[400984068,1767879043661,-300.0,0.00017831,2]
[400984070,1767879043672,-500.0,0.00017834,2]
[400984072,1767879043682,-300.0,0.00017836,2]
[400984074,1767879043692,-300.0,0.00017844,2]
[400984076,1767879043702,-300.0,0.00017846,2]
[400984077,1767879043711,-300.0,0.00017853,2]
[400984079,1767879043722,-300.0,0.00017854,2]
[400984081,1767879043732,-300.0,0.00017855,2]
[400984083,1767879043741,-300.0,0.0001786,2]
[400984085,1767879043751,-1206.43465,0.0001786,2]
[400984087,1767879043760,-300.0,0.00017874,2]
[400984089,1767879043770,-661.47,0.00017875,2]
[400984091,1767879043780,-661.47,0.00017875,2]
[400984093,1767879043789,-661.47,0.00017875,2]
[400984095,1767879043798,-1322.94,0.00017875,2]
[400984096,1767879043808,-661.47,0.00017875,2]
[400984098,1767879043817,-661.47,0.00017875,2]
[400984100,1767879043827,-661.47,0.00017875,2]
[400984102,1767879043837,-661.47,0.00017875,2]
[400984104,1767879043847,-661.47,0.00017875,2]
[400984106,1767879043860,-1206.43464,0.0001788,2]
[400984108,1767879043871,-300.0,0.00017885,2]
[400984110,1767879043881,-300.0,0.00017887,2]
[400984112,1767879043892,-300.0,0.00017888,2]
[400984114,1767879043903,-500.0,0.00017889,2]
[400984116,1767879043913,-300.0,0.00017889,2]
[400984118,1767879043923,-357.2,0.00017889,2]
[400984120,1767879043933,-25000.0,0.00017891,3]
[400984122,1767879043942,-692.61173268,0.000179,2]
[400984124,1767879043952,-10000.0,0.000179,2]
[400984126,1767879043962,-25000.0,0.000179,3]
[400984128,1767879043972,-196.86885841,0.000179,2]
[400984130,1767879043982,-6072.10307611,0.000179,2]
[400984132,1767879043992,-23965.2139512,0.000179,2]
[400984133,1767879044002,-435.5798791,0.000179,2]
[400984135,1767879044011,-10176.85598092,0.000179,2]
[400984137,1767879044021,-423.76529882,0.000179,2]
[400984139,1767879044031,-10815.0,0.000179,2]
[400984141,1767879044040,-300.0,0.00017907,2]
[400984143,1767879044050,-300.0,0.0001791,2]
[400984145,1767879044060,-1206.43465,0.0001791,2]
[400984147,1767879044069,-300.0,0.00017917,2]
[400984149,1767879044078,-300.0,0.00017921,2]
[400984151,1767879044087,-300.0,0.00017925,2]
[400984153,1767879044097,-300.0,0.00017941,2]
[400984154,1767879044107,-151.0,0.00017948,2]
[400984156,1767879044117,-300.0,0.0001795,2]
[400984158,1767879044126,-300.0,0.00017961,2]
[400984160,1767879044135,-300.0,0.00017967,2]
[400984162,1767879044145,-800.0,0.0001797,2]
[400984164,1767879044155,-500.0,0.00017973,2]
[400984166,1767879044164,-500.0,0.00017973,2]
[400984168,1767879044175,-500.0,0.00017973,2]
[400984170,1767879044184,-352.9335528,0.00017973,2]
[400984172,1767879044194,-500.0,0.00017973,2]
[400984174,1767879044204,-500.0,0.00017973,2]
[400984176,1767879044213,-235.35795411,0.00017973,2]
[400984178,1767879044222,-500.0,0.00017973,2]
[400984180,1767879044233,-505.27205439,0.00017973,2]
[400984182,1767879044244,-500.0,0.00017973,2]
[400984184,1767879044253,-500.0,0.00017973,2]
[400984185,1767879044263,-500.0,0.00017973,2]
[400984187,1767879044273,-500.0,0.00017973,2]
[400984189,1767879044283,-500.0,0.00017973,2]
[400984191,1767879044293,-150.0,0.00017973,2]
[400984193,1767879044303,-150.0,0.00017973,2]
[400984195,1767879044313,-300.0,0.00017976,2]
[400984197,1767879044323,-152.0,0.00017978,8]
[400984199,1767879044333,-300.0,0.0001798,2]
[400984201,1767879044343,-157.72323008,0.00017981,2]
[400984203,1767879044353,-300.0,0.00017988,2]
[400984205,1767879044363,-300.0,0.00017989,2]
[400984207,1767879044372,-132251.9539961,0.00017991,2]
[400984208,1767879044383,-234.0,0.00017995,2]
[400984210,1767879044396,-300.0,0.00017997,2]
[400984212,1767879044406,-439.78730998,0.00017997,2]
[400984214,1767879044415,-164.05043287,0.00017999,2]
[400984216,1767879044425,-300.0,0.00017999,2]
[400984218,1767879044435,-737.8333336,0.00017999,2]
[400984220,1767879044444,-300.0,0.00017999,2]
[400984222,1767879044454,-300.0,0.00017999,2]
[400984224,1767879044464,-300.0,0.00017999,2]
[400984226,1767879044474,-404.32200531,0.00017999,2]
[400984228,1767879044484,-666.0,0.00017999,2]
[400984230,1767879044494,-300.0,0.00017999,2]
[400984232,1767879044504,-666.0,0.00017999,2]
[400984233,1767879044515,-4971932.41030879,0.00018,2]
[400984235,1767879044525,-741203.47601904,0.00018,2]
[400984237,1767879044535,-105370.64318368,0.00018,2]
[400984239,1767879044544,-468783.01374708,0.00018,2]
[400984346,1767879045858,-4575.72014218,0.00018,2]
[400984499,1767879047313,-170.14839027,0.000109,2]
[400984501,1767879047323,-280.17660942,0.00015632,2]
[400984504,1767879047339,-561.54357013,0.00015632,2]
[400984506,1767879047353,-305.52722815,0.00015632,2]
[400984621,1767879048443,-1288.7525923,0.00015632,2]
[400984623,1767879048452,-661.47,0.00017041,2]
[400984625,1767879048461,-407.36190832,0.000179,2]
[400984627,1767879048470,-30318.8440756,0.00018,2]
[400987411,1767879080690,500.0,0.00010598,2]
[400987430,1767879081948,-307.96794103,0.00010797,2]
[400987432,1767879081975,-14.17536423,0.00010797,2]
[400987486,1767879085343,-155.62838882,0.00010797,2]
[400987487,1767879088384,-121.44773864,0.00010797,2]
[400987488,1767879088410,-67.33424592,0.00010797,2]
[400987499,1767879093900,-155.62838882,0.00010797,2]
[400987500,1767879095450,-42.63746933,0.00010797,2]
[400987501,1767879095475,-246.57183853,0.00010797,2]
[400987502,1767879097033,-253.42816147,0.00010797,2]
[400987503,1767879097058,-62.49477926,0.00010797,2]
[400987504,1767879098415,-200.0,0.00010797,2]
[400987505,1767879101485,-237.50522074,0.00010797,2]
[400987506,1767879101510,-15.38384578,0.00010797,2]
[400987507,1767879102920,-139.85375608,0.00010797,2]
[400987508,1767879102950,-93.73336022,0.00010797,2]
[400987509,1767879105199,-182.13039526,0.00010797,2]
[400987510,1767879107208,-195.0,0.00010797,2]
[400987524,1767879110634,-29.13624452,0.00010797,2]
[400987526,1767879110669,-200.09909953,0.00010797,2]
[400987556,1767879112039,-299.90090047,0.00010797,2]
[400987557,1767879112069,-463.94909953,0.00010797,2]
[400987862,1767880004916,4769.4740586,0.00015,3]
[400987864,1767880033556,10000.0,0.000145,3]
[400987865,1767880059080,900.0,0.000132,3]
[400987866,1767880067268,900.0,0.000142,4]
[400987868,1767880094109,10000.0,0.000145,3]
[400987902,1767880199268,39789.15791613,0.000145,3]
[400987922,1767880232116,-1032.00616953,0.00011041,2]
[400987923,1767880232128,-167.99383047,0.00011041,2]
[400987924,1767880232138,-240.0,0.00011041,2]
[400987925,1767880232150,-345.50300588,0.00011042,2]
[400987926,1767880232159,-201.96873185,0.00011042,2]
[400987928,1767880232250,-3819.10845915,0.00011042,2]
[400987929,1767880232259,-195.0,0.00011048,2]
[400987930,1767880232269,-250.0,0.00011053,2]
[400987931,1767880232278,-195.0,0.00011062,2]
[400987932,1767880232287,-300.0,0.00011064,2]
[400987933,1767880232296,-195.0,0.00011064,2]
[400987934,1767880232305,-311.54275263,0.00011072,2]
[400987935,1767880232315,-300.0,0.00011078,2]
[400987936,1767880232324,-300.0,0.00011078,2]
[400987937,1767880232333,-300.0,0.00011078,2]
[400987938,1767880232343,-942.56574764,0.000119,2]
[400987939,1767880232353,-5000.0,0.00012,2]
[400987940,1767880232362,-252.88906652,0.00012045,2]
[400987941,1767880232371,-489.20930786,0.00012045,2]
[400987942,1767880232381,-183.03549759,0.00012046,2]
[400987943,1767880232391,-183.03549759,0.00012046,2]
[400987945,1767880232400,-128858.50117109,0.00012095,2]
[400987947,1767880232412,-1254.41808677,0.00012095,2]
[400987949,1767880232433,-547.14123308,0.00012095,2]
[400987954,1767880238268,-1491.16268168,0.00012095,2]
[400987955,1767880238379,-10591.67593135,0.00012095,2]
[400987956,1767880238397,-1243.35495265,0.00012095,2]
[400988209,1767880241199,-462.0,0.00012095,2]
[400988211,1767880241210,-899.935,0.00012095,2]
[400988215,1767880241236,-854651.81094338,0.00012095,2]
[400988217,1767880241245,-1680.0,0.00012145,2]
[400988219,1767880241254,-300.0,0.00012146,2]
[400988221,1767880241263,-195.0,0.00012146,2]
[400988223,1767880241272,-250.0,0.00012146,2]
[400988225,1767880241281,-195.0,0.00012146,2]
[400988227,1767880241290,-4987.2,0.00012159,2]
[400988229,1767880241300,-150.99,0.00012159,2]
[400988231,1767880241309,-999.99,0.00012195,2]
[400988233,1767880241318,-9999.99,0.00012195,2]
[400988235,1767880241327,-5441.69,0.00012195,2]
[400988237,1767880241337,-9999.99,0.00012195,2]
[400988239,1767880241346,-900.0,0.000122,2]
[400988241,1767880241355,-171.28,0.00012297,2]
[400988243,1767880241364,-345.50300587,0.00012795,2]
[400988245,1767880241374,-183.03549754,0.00012882,2]
[400988247,1767880241383,-183.03549754,0.00012882,2]
[400988249,1767880241393,-5000.0,0.00013,2]
[400988251,1767880241402,-2351.0,0.0001336,2]
[400988253,1767880241411,-203.87604418,0.00013372,2]
[400988255,1767880241420,-215.57755872,0.00013372,2]
[400988257,1767880241429,-500.0,0.00013372,2]
[400988259,1767880241439,-308.6663213,0.00013372,2]
[400988261,1767880241448,-500.0,0.00013698,2]
[400988263,1767880241457,-500.0,0.00013698,2]
[400988265,1767880241466,-500.0,0.00013698,2]
[400988267,1767880241475,-500.0,0.00013698,2]
[400988269,1767880241484,-500.0,0.00013698,2]
[400988270,1767880241493,-500.0,0.00013698,2]
[400988272,1767880241502,-500.0,0.00013698,2]
[400988274,1767880241511,-500.0,0.00013698,2]
[400988276,1767880241521,-500.0,0.00013698,2]
[400988278,1767880241531,-500.0,0.00013698,2]
[400988280,1767880241539,-500.0,0.00013698,2]
[400988282,1767880241549,-509.20271635,0.00013698,2]
[400988284,1767880241558,-722.89,0.00013698,2]
[400988286,1767880241568,-183.03549754,0.00013719,2]
[400988288,1767880241578,-183.03549754,0.00013719,2]
[400988291,1767880241588,-722.89,0.00013972,2]
[400988293,1767880241597,-5000.0,0.00014,2]
[400988295,1767880241607,-151.0,0.00014245,2]
[400988297,1767880241616,-151.0,0.00014245,2]
[400988299,1767880241625,-151.0,0.00014245,2]
[400988301,1767880241636,-151.0,0.00014245,2]
[400988303,1767880241645,-151.0,0.00014245,2]
[400988305,1767880241655,-151.0,0.00014245,2]
[400988307,1767880241670,-151.0,0.00014245,2]
[400988308,1767880241680,-151.0,0.00014245,2]
[400988310,1767880241690,-151.0,0.00014245,2]
[400988313,1767880241699,-151.0,0.00014245,2]
[400988315,1767880241708,-151.0,0.00014245,2]
[400988316,1767880241717,-151.0,0.00014245,2]
[400988318,1767880241727,-151.0,0.00014245,2]
[400988321,1767880241736,-151.0,0.00014245,2]
[400988322,1767880241745,-151.0,0.00014245,2]
[400988324,1767880241754,-151.0,0.00014245,2]
[400988327,1767880241767,-151.0,0.00014245,2]
[400988329,1767880241776,-151.0,0.00014245,2]
[400988331,1767880241786,-151.0,0.00014245,2]
[400988333,1767880241795,-151.0,0.00014245,2]
[400988335,1767880241803,-151.0,0.00014245,2]
[400988337,1767880241813,-151.0,0.00014245,2]
[400988339,1767880241822,-151.0,0.00014245,2]
[400988341,1767880241831,-151.0,0.00014245,2]
[400988343,1767880241841,-151.0,0.00014245,2]
[400988345,1767880241850,-151.0,0.00014245,2]
[400988347,1767880241859,-151.0,0.00014245,2]
[400988349,1767880241868,-151.0,0.00014245,2]
[400988351,1767880241879,-151.0,0.00014245,2]
[400988353,1767880241888,-151.0,0.00014245,2]
[400988355,1767880241897,-151.0,0.00014245,2]
[400988357,1767880241907,-722.89,0.00014246,2]
[400988359,1767880241916,-1336.36,0.00014504,2]
[400988361,1767880241925,-722.89,0.0001452,2]
[400988363,1767880241935,-345.50300587,0.00014547,2]
[400988365,1767880241944,-183.03549754,0.00014555,2]
[400988367,1767880241954,-250.0,0.0001459,2]
[400988369,1767880241966,-3292.0,0.00014696,2]
[400988371,1767880241976,-500.0,0.00014763,2]
[400988373,1767880241986,-722.89,0.00014794,2]
[400988375,1767880241995,-671.88,0.00014817,2]
[400988377,1767880242005,-500.0,0.00014964,2]
[400988379,1767880242015,-151.0,0.00014971,2]
[400988381,1767880242024,-151.0,0.00014971,2]
[400988383,1767880242035,-199.19,0.00014971,2]
[400988385,1767880242044,-1353.0,0.00015,4]
[400988387,1767880242054,-5000.0,0.00015,2]
[400988389,1767880242062,-722.89,0.00015068,2]
[400988391,1767880242072,-1000.0,0.00015164,2]
[400988393,1767880242081,-207.87,0.00015303,2]
[400988395,1767880242092,-1000.0,0.0001531,2]
[400988397,1767880242101,-722.89,0.00015342,2]
[400988399,1767880242110,-6141.5,0.00015425,2]
[400988401,1767880242119,-365.44,0.0001559,2]
[400988403,1767880242128,-722.95,0.00015616,2]
[400988405,1767880242137,-644.1,0.00015644,2]
[400988407,1767880242146,-150.0,0.00015656,2]
[400988409,1767880242155,-1118.76,0.00015799,2]
[400988411,1767880242165,-1500.0,0.00015858,2]
[400988413,1767880242174,-157.72323008,0.00015997,2]
[400988415,1767880242183,-500.0,0.00015999,2]
[400988417,1767880242192,-5000.0,0.00016,2]
[400988419,1767880242201,-207.87,0.00016068,2]
[400988421,1767880242210,-661.47,0.00016082,2]
[400988423,1767880242220,-661.47,0.00016082,2]
[400988425,1767880242229,-661.47,0.00016082,2]
[400988427,1767880242238,-9999.99,0.00016116,2]
[400988429,1767880242247,-4609.0,0.00016165,2]
[400988431,1767880242256,-3467.0,0.00016352,2]
[400988433,1767880242265,-1405.0,0.00016352,2]
[400988435,1767880242275,-1330.0,0.00016352,2]
[400988437,1767880242284,-614.0,0.00016352,2]
[400988439,1767880242293,-1266.0,0.00016352,2]
[400988441,1767880242302,-505.0,0.00016352,2]
[400988443,1767880242311,-1201.0,0.00016352,2]
[400988445,1767880242319,-150.0,0.00016352,2]
[400988447,1767880242329,-565.0,0.00016352,2]
[400988449,1767880242338,-2436.0,0.00016352,2]
[400988451,1767880242348,-2000.0,0.00016406,2]
[400988452,1767880242357,-166.66,0.00016427,2]
[400988453,1767880242369,-151.0,0.00016435,2]
[400988454,1767880242381,-500.0,0.00016435,2]
[400988455,1767880242392,-500.0,0.00016435,2]
[400988456,1767880242404,-500.0,0.00016435,2]
[400988457,1767880242416,-419.95971989,0.00016435,2]
[400988458,1767880242428,-362.21942935,0.00016438,2]
[400988459,1767880242440,-207.87,0.00016833,2]
[400988460,1767880242453,-446.20279251,0.00016954,2]
[400988461,1767880242465,-166.66,0.00016969,2]
[400988462,1767880242477,-151.0,0.00016983,2]
[400988463,1767880242489,-50623.16,0.00016986,2]
[400988464,1767880242501,-250.0,0.00017,2]
[400988465,1767880242512,-1375.17747862,0.00017,2]
[400988467,1767880242522,-5000.0,0.00017,2]
[400988469,1767880242532,-3032.44949746,0.00017,2]
[400988471,1767880242542,-661.47,0.00017041,2]
[400988473,1767880242552,-1283.3,0.00017041,2]
[400988475,1767880242561,-1000.0,0.00017059,2]
[400988477,1767880242571,-151.0,0.00017097,2]
[400988479,1767880242580,-151.0,0.0001721,2]
[400988481,1767880242589,-151.0,0.00017323,2]
[400988483,1767880242598,-157.72323008,0.0001733,2]
[400988485,1767880242608,-150.0,0.00017396,2]
[400988487,1767880242617,-150.0,0.00017396,2]
[400988489,1767880242627,-500.0,0.00017396,2]
[400988491,1767880242637,-150.0,0.00017396,2]
[400988493,1767880242647,-200.0,0.00017396,2]
[400988495,1767880242656,-150.0,0.00017396,2]
[400988497,1767880242665,-150.0,0.00017396,2]
[400988500,1767880242675,-150.0,0.00017396,2]
[400988502,1767880242684,-150.0,0.00017396,2]
[400988503,1767880242693,-500.0,0.00017396,2]
[400988506,1767880242702,-150.0,0.00017396,2]
[400988507,1767880242711,-151.0,0.00017435,2]
[400988509,1767880242720,-150.0,0.00017451,2]
[400988522,1767880242824,-150.0,0.00017451,2]
[400988524,1767880242834,-500.0,0.00017451,2]
[400988526,1767880242844,-150.0,0.00017451,2]
[400988528,1767880242853,-200.0,0.00017451,2]
[400988530,1767880242862,-150.0,0.00017451,2]
[400988532,1767880242872,-500.0,0.00017451,2]
[400988535,1767880242881,-150.0,0.00017451,2]
[400988536,1767880242891,-200.0,0.00017451,2]
[400988538,1767880242900,-221.38436778,0.00017451,2]
[400988540,1767880242909,-1000.0,0.00017453,2]
[400988543,1767880242920,-607.21030762,0.00017456,2]
[400988545,1767880242930,-2000.0,0.000175,2]
[400988546,1767880242940,-418.69539905,0.00017501,2]
[400988549,1767880242949,-607.21030761,0.00017505,2]
[400988550,1767880242963,-150.0,0.00017506,2]
[400988552,1767880242973,-150.0,0.00017506,2]
[400988554,1767880242982,-500.0,0.00017506,2]
[400988556,1767880242991,-150.0,0.00017506,2]
[400988558,1767880243002,-200.0,0.00017506,2]
[400988560,1767880243011,-500.0,0.00017506,2]
[400988562,1767880243020,-200.0,0.00017506,2]
[400988564,1767880243031,-166.66,0.00017511,2]
[400988566,1767880243040,-151.0,0.00017531,2]
[400988569,1767880243050,-151.0,0.00017548,2]
[400988570,1767880243059,-1000.0,0.00017553,2]
[400988572,1767880243069,-607.21030761,0.00017555,2]
[400988575,1767880243078,-298.0,0.00017556,2]
[400988578,1767880243087,-150.0,0.0001756,2]
[400988580,1767880243095,-150.0,0.0001756,2]
[400988581,1767880243104,-500.0,0.0001756,2]
[400988583,1767880243114,-223.0,0.0001756,2]
[400988586,1767880243123,-207.87,0.00017598,2]
[400988588,1767880243131,-607.21030761,0.00017604,2]
[400988590,1767880243141,-282.10117033,0.00017615,2]
[400988592,1767880243150,-150.0,0.00017615,2]
[400988593,1767880243159,-500.0,0.00017615,2]
[400988595,1767880243168,-3843.2571739,0.0001764,2]
[400988598,1767880243178,-607.21030761,0.00017653,2]
[400988600,1767880243188,-151.0,0.00017661,2]
[400988601,1767880243197,-250.0,0.0001767,2]
[400988604,1767880243206,-1000.0,0.00017671,2]
[400988605,1767880243215,-1970.1154,0.00017701,2]
[400988607,1767880243224,-607.21030761,0.00017703,2]
[400988609,1767880243234,-381.0,0.00017706,2]
[400988611,1767880243243,-1000.0,0.00017717,2]
[400988613,1767880243252,-607.21030761,0.00017752,2]
[400988615,1767880243261,-1000.0,0.00017767,2]
[400988617,1767880243270,-151.0,0.00017774,2]
[400988619,1767880243280,-6453.0,0.00017782,2]
[400988621,1767880243289,-173.15293317,0.000178,2]
[400988623,1767880243298,-607.21030761,0.00017801,2]
[400988625,1767880243307,-804.28976,0.0001782,2]
[400988627,1767880243316,-804.28976,0.0001782,2]
[400988629,1767880243326,-804.28977,0.0001783,2]
[400988631,1767880243335,-1047.53522858,0.0001783,2]
[400988633,1767880243344,-173.15293317,0.00017833,2]
[400988635,1767880243353,-1000.0,0.00017836,2]
[400988637,1767880243362,-607.21030761,0.00017851,2]
[400988639,1767880243371,-200.0,0.00017855,2]
[400988641,1767880243380,-200.0,0.00017856,2]
[400988643,1767880243389,-452.0,0.00017859,2]